[Event "Titled Tuesday Blitz May 2 Late 2023"]
[White "Ismayilova, Khanim"]
[Black "Harish, Neeraj"]
[WhiteFideId "13429019"]
[BlackFideId "30958130"]
[WhiteElo "1633"]
[BlackElo "1965"]
[Result "0-1"]
[Round "06"]
[TimeControl "180+2"]
[Date "2023.05.02"]
[WhiteClock "0:00:08"]
[BlackClock "0:01:28"]

1. c4 {[%clk 0:03:00]}  Nf6 {[%clk 0:02:53]} 2. Nc3 {[%clk 0:03:00]}  g6 {[%clk 0:02:52]} 3. d4 {[%clk 0:02:59]}  d5 {[%clk 0:02:51]} 4. e3 {[%clk 0:02:54]}  Bg7 {[%clk 0:02:50]} 5. Nf3 {[%clk 0:02:54]}  O-O {[%clk 0:02:49]} 6. Bd3 {[%clk 0:02:54]}  dxc4 {[%clk 0:02:48]} 7. Bxc4 {[%clk 0:02:54]}  c5 {[%clk 0:02:47]} 8. O-O {[%clk 0:02:53]}  Nc6 {[%clk 0:02:42]} 9. b3 {[%clk 0:02:45]}  cxd4 {[%clk 0:02:42]} 10. exd4 {[%clk 0:02:44]}  Bg4 {[%clk 0:02:35]} 11. Be3 {[%clk 0:02:29]}  e6 {[%clk 0:02:14]} 12. Rc1 {[%clk 0:02:23]}  Ne7 {[%clk 0:02:10]} 13. Be2 {[%clk 0:02:20]}  Nfd5 {[%clk 0:02:07]} 14. Ne5 {[%clk 0:02:06]}  Bxe2 {[%clk 0:02:01]} 15. Qxe2 {[%clk 0:02:04]}  Nxc3 {[%clk 0:02:01]} 16. Rxc3 {[%clk 0:02:04]}  Nd5 {[%clk 0:02:02]} 17. Rc2 {[%clk 0:01:53]}  Qd6 {[%clk 0:01:49]} 18. Nc4 {[%clk 0:01:46]}  Qe7 {[%clk 0:01:49]} 19. h3 {[%clk 0:01:35]}  Rac8 {[%clk 0:01:47]} 20. Rfc1 {[%clk 0:01:34]}  a6 {[%clk 0:01:41]} 21. Qd2 {[%clk 0:00:46]}  Rfd8 {[%clk 0:01:37]} 22. Bg5 {[%clk 0:00:40]}  f6 {[%clk 0:01:35]} 23. Bh6 {[%clk 0:00:40]}  Nb4 {[%clk 0:01:29]} 24. Rc3 {[%clk 0:00:12]}  Bxh6 {[%clk 0:01:28]} 25. Qxh6 {[%clk 0:00:12]}  Nxa2 {[%clk 0:01:28]} 26. Nb6 {[%clk 0:00:09]}  Rxc3 {[%clk 0:01:27]} 27. Rxc3 {[%clk 0:00:08]}  Nxc3 {[%clk 0:01:28]} 0-1


[Site "https://www.chess.com"]

[Event "Titled Tuesday Blitz May 2 Late 2023"]
[White "Dias, Joao Batista"]
[Black "Phillips, Rene"]
[WhiteFideId "2108240"]
[BlackFideId "2056275"]
[WhiteElo "1907"]
[BlackElo "1852"]
[Result "0-1"]
[Round "06"]
[TimeControl "180+2"]
[Date "2023.05.02"]
[WhiteClock "0:02:16"]
[BlackClock "0:01:59"]

1. e4 {[%clk 0:03:00]}  Nc6 {[%clk 0:02:58]} 2. d4 {[%clk 0:02:59]}  d5 {[%clk 0:02:59]} 3. exd5 {[%clk 0:02:59]}  Qxd5 {[%clk 0:02:58]} 4. c3 {[%clk 0:03:00]}  e5 {[%clk 0:02:57]} 5. dxe5 {[%clk 0:02:58]}  Qxd1+ {[%clk 0:02:56]} 6. Kxd1 {[%clk 0:02:59]}  Nxe5 {[%clk 0:02:54]} 7. Bf4 {[%clk 0:02:59]}  Bg4+ {[%clk 0:02:49]} 8. Be2 {[%clk 0:02:58]}  O-O-O+ {[%clk 0:02:49]} 9. Kc2 {[%clk 0:02:56]}  Bf5+ {[%clk 0:02:49]} 10. Kb3 {[%clk 0:02:53]}  Ng6 {[%clk 0:02:42]} 11. Be3 {[%clk 0:02:50]}  a6 {[%clk 0:02:31]} 12. a4 {[%clk 0:02:49]}  Nf6 {[%clk 0:02:30]} 13. Nd2 {[%clk 0:02:38]}  Nd5 {[%clk 0:02:25]} 14. Bd4 {[%clk 0:02:33]}  c5 {[%clk 0:02:15]} 15. Be3 {[%clk 0:02:28]}  Nxe3 {[%clk 0:02:13]} 16. fxe3 {[%clk 0:02:28]}  Rxd2 {[%clk 0:02:13]} 17. Bc4 {[%clk 0:02:24]}  Be6 {[%clk 0:02:04]} 18. Nf3 {[%clk 0:02:21]}  Rxg2 {[%clk 0:02:01]} 19. Ne5 {[%clk 0:02:16]}  Nxe5 {[%clk 0:01:59]} 0-1


[Site "https://www.chess.com"]

[Event "Titled Tuesday Blitz May 2 Late 2023"]
[White "Joubert, Dantelle"]
[Black "Cooklev, Steven"]
[WhiteFideId "14310813"]
[BlackFideId "2050552"]
[WhiteElo "1507"]
[BlackElo "2039"]
[Result "1-0"]
[Round "06"]
[TimeControl "180+2"]
[Date "2023.05.02"]
[WhiteClock "0:02:07"]
[BlackClock "0:01:13"]

1. d4 {[%clk 0:03:00]}  Nf6 {[%clk 0:02:59]} 2. c4 {[%clk 0:03:00]}  e6 {[%clk 0:03:00]} 3. Nc3 {[%clk 0:02:59]}  Bb4 {[%clk 0:03:01]} 4. e3 {[%clk 0:02:59]}  O-O {[%clk 0:03:00]} 5. Bd3 {[%clk 0:02:58]}  d5 {[%clk 0:03:01]} 6. Ne2 {[%clk 0:02:57]}  dxc4 {[%clk 0:02:50]} 7. Bxc4 {[%clk 0:02:56]}  e5 {[%clk 0:02:51]} 8. a3 {[%clk 0:02:51]}  Bd6 {[%clk 0:02:50]} 9. O-O {[%clk 0:02:42]}  Nc6 {[%clk 0:02:46]} 10. Bb5 {[%clk 0:02:30]}  Bd7 {[%clk 0:02:37]} 11. d5 {[%clk 0:02:24]}  Ne7 {[%clk 0:02:37]} 12. Bxd7 {[%clk 0:02:22]}  Qxd7 {[%clk 0:02:38]} 13. e4 {[%clk 0:02:22]}  Ng6 {[%clk 0:02:12]} 14. Ng3 {[%clk 0:02:17]}  h6 {[%clk 0:02:05]} 15. Nf5 {[%clk 0:02:13]}  Rfe8 {[%clk 0:02:01]} 16. Be3 {[%clk 0:02:10]}  Nxe4 {[%clk 0:01:32]} 17. Nxh6+ {[%clk 0:02:09]}  gxh6 {[%clk 0:01:31]} 18. Nxe4 {[%clk 0:02:08]}  f5 {[%clk 0:01:13]} 19. Nf6+ {[%clk 0:02:07]} 1-0


[Site "https://www.chess.com"]

[Event "Titled Tuesday Blitz May 2 Late 2023"]
[White "Sanchez, Robert"]
[Black "Oliveira, Tiago Batista"]
[WhiteFideId "2034360"]
[BlackFideId "2108291"]
[WhiteElo "1966"]
[BlackElo "1962"]
[Result "0-1"]
[Round "06"]
[TimeControl "180+2"]
[Date "2023.05.02"]
[WhiteClock "0:01:07"]
[BlackClock "0:00:18"]

1. e4 {[%clk 0:02:55]}  e5 {[%clk 0:02:43]} 2. Nf3 {[%clk 0:02:54]}  Nc6 {[%clk 0:02:41]} 3. Bb5 {[%clk 0:02:54]}  a6 {[%clk 0:02:42]} 4. Ba4 {[%clk 0:02:54]}  Nf6 {[%clk 0:02:42]} 5. d3 {[%clk 0:02:51]}  b5 {[%clk 0:02:41]} 6. Bb3 {[%clk 0:02:50]}  Be7 {[%clk 0:02:36]} 7. c3 {[%clk 0:02:48]}  O-O {[%clk 0:02:36]} 8. O-O {[%clk 0:02:48]}  Bb7 {[%clk 0:02:36]} 9. Qe2 {[%clk 0:02:47]}  Na5 {[%clk 0:02:36]} 10. Bc2 {[%clk 0:02:47]}  d6 {[%clk 0:02:30]} 11. Rd1 {[%clk 0:02:46]}  c5 {[%clk 0:02:27]} 12. Nbd2 {[%clk 0:02:46]}  Nc6 {[%clk 0:02:22]} 13. Nf1 {[%clk 0:02:46]}  d5 {[%clk 0:02:13]} 14. Ng3 {[%clk 0:02:45]}  Bd6 {[%clk 0:02:05]} 15. Nf5 {[%clk 0:02:44]}  Re8 {[%clk 0:02:02]} 16. Bg5 {[%clk 0:02:44]}  h6 {[%clk 0:02:02]} 17. Bh4 {[%clk 0:02:44]}  Be7 {[%clk 0:01:49]} 18. Nxe7+ {[%clk 0:02:42]}  Qxe7 {[%clk 0:01:49]} 19. exd5 {[%clk 0:02:42]}  Na7 {[%clk 0:01:38]} 20. c4 {[%clk 0:02:41]}  Rad8 {[%clk 0:01:25]} 21. Re1 {[%clk 0:02:31]}  Nc8 {[%clk 0:01:17]} 22. Rad1 {[%clk 0:02:12]}  Nd6 {[%clk 0:01:15]} 23. b3 {[%clk 0:02:07]}  Nf5 {[%clk 0:01:15]} 24. Bg3 {[%clk 0:02:03]}  Nxg3 {[%clk 0:01:11]} 25. hxg3 {[%clk 0:02:03]}  Ng4 {[%clk 0:00:55]} 26. Qe4 {[%clk 0:01:55]}  Bc8 {[%clk 0:00:47]} 27. Nh4 {[%clk 0:01:51]}  Qg5 {[%clk 0:00:41]} 28. Nf3 {[%clk 0:01:44]}  Qh5 {[%clk 0:00:34]} 29. Nh4 {[%clk 0:01:07]}  Rd6 {[%clk 0:00:18]} 0-1


[Site "https://www.chess.com"]

[Event "Titled Tuesday Blitz May 2 Late 2023"]
[White "Nakamura, Hikaru"]
[Black "Sarana, Alexey"]
[WhiteFideId "2016192"]
[BlackFideId "24133795"]
[WhiteElo "2885"]
[BlackElo "2714"]
[Result "1/2-1/2"]
[Round "07"]
[TimeControl "180+2"]
[Date "2023.05.02"]
[WhiteClock "0:00:09"]
[BlackClock "0:00:07"]

1. e4 {[%clk 0:03:00]}  c5 {[%clk 0:02:59]} 2. c3 {[%clk 0:02:56]}  Nf6 {[%clk 0:02:58]} 3. e5 {[%clk 0:02:56]}  Nd5 {[%clk 0:02:59]} 4. Nf3 {[%clk 0:02:57]}  d6 {[%clk 0:02:59]} 5. d4 {[%clk 0:02:55]}  cxd4 {[%clk 0:02:59]} 6. Qxd4 {[%clk 0:02:55]}  e6 {[%clk 0:02:56]} 7. exd6 {[%clk 0:02:55]}  Nc6 {[%clk 0:02:54]} 8. Bb5 {[%clk 0:02:48]}  Bd7 {[%clk 0:02:52]} 9. Bxc6 {[%clk 0:02:49]}  Bxc6 {[%clk 0:02:53]} 10. Nbd2 {[%clk 0:02:49]}  Qxd6 {[%clk 0:02:50]} 11. Nc4 {[%clk 0:02:49]}  Qc5 {[%clk 0:02:44]} 12. Nce5 {[%clk 0:02:46]}  f6 {[%clk 0:02:12]} 13. Qxc5 {[%clk 0:02:21]}  Bxc5 {[%clk 0:02:12]} 14. Nxc6 {[%clk 0:02:22]}  bxc6 {[%clk 0:02:13]} 15. Ke2 {[%clk 0:02:14]}  e5 {[%clk 0:02:13]} 16. g3 {[%clk 0:02:14]}  O-O-O {[%clk 0:02:09]} 17. Be3 {[%clk 0:02:12]}  Bxe3 {[%clk 0:02:07]} 18. fxe3 {[%clk 0:02:12]}  Rd7 {[%clk 0:02:05]} 19. Nd2 {[%clk 0:02:12]}  f5 {[%clk 0:02:00]} 20. e4 {[%clk 0:02:01]}  fxe4 {[%clk 0:02:00]} 21. Nxe4 {[%clk 0:02:02]}  Nf6 {[%clk 0:02:01]} 22. Nf2 {[%clk 0:01:59]}  Rhd8 {[%clk 0:01:59]} 23. Rad1 {[%clk 0:01:56]}  Rxd1 {[%clk 0:01:59]} 24. Nxd1 {[%clk 0:01:54]}  Kd7 {[%clk 0:01:59]} 25. Nf2 {[%clk 0:01:52]}  Ke6 {[%clk 0:01:57]} 26. Rd1 {[%clk 0:01:39]}  Rxd1 {[%clk 0:01:56]} 27. Nxd1 {[%clk 0:01:40]}  e4 {[%clk 0:01:48]} 28. Ne3 {[%clk 0:01:37]}  Ke5 {[%clk 0:01:46]} 29. a4 {[%clk 0:01:37]}  g5 {[%clk 0:01:34]} 30. Nc4+ {[%clk 0:01:34]}  Kd5 {[%clk 0:01:33]} 31. b3 {[%clk 0:01:33]}  h5 {[%clk 0:01:26]} 32. h3 {[%clk 0:01:32]}  Nd7 {[%clk 0:01:22]} 33. Nd2 {[%clk 0:01:26]}  Nc5 {[%clk 0:01:02]} 34. Ke3 {[%clk 0:01:19]}  Ke5 {[%clk 0:00:59]} 35. a5 {[%clk 0:01:15]}  Nb7 {[%clk 0:00:55]} 36. Nc4+ {[%clk 0:01:06]}  Kd5 {[%clk 0:00:52]} 37. g4 {[%clk 0:01:02]}  hxg4 {[%clk 0:00:51]} 38. hxg4 {[%clk 0:01:03]}  a6 {[%clk 0:00:32]} 39. Kf2 {[%clk 0:01:00]}  Nc5 {[%clk 0:00:30]} 40. Nb6+ {[%clk 0:00:50]}  Ke5 {[%clk 0:00:28]} 41. b4 {[%clk 0:00:50]}  Nb7 {[%clk 0:00:23]} 42. Ke3 {[%clk 0:00:48]}  Nd6 {[%clk 0:00:18]} 43. c4 {[%clk 0:00:44]}  Ke6 {[%clk 0:00:07]} 44. Kd4 {[%clk 0:00:41]}  Ne8 {[%clk 0:00:02]} 45. Kxe4 {[%clk 0:00:33]}  Nf6+ {[%clk 0:00:03]} 46. Kf3 {[%clk 0:00:32]}  Kd6 {[%clk 0:00:02]} 47. Na4 {[%clk 0:00:26]}  Ke5 {[%clk 0:00:02]} 48. Nc3 {[%clk 0:00:21]}  Kd4 {[%clk 0:00:02]} 49. b5 {[%clk 0:00:21]}  cxb5 {[%clk 0:00:01]} 50. cxb5 {[%clk 0:00:22]}  Kxc3 {[%clk 0:00:01]} 51. bxa6 {[%clk 0:00:21]}  Nd5 {[%clk 0:00:02]} 52. Ke4 {[%clk 0:00:20]}  Nc7 {[%clk 0:00:03]} 53. a7 {[%clk 0:00:21]}  Kb4 {[%clk 0:00:03]} 54. Kf5 {[%clk 0:00:18]}  Kxa5 {[%clk 0:00:04]} 55. Kxg5 {[%clk 0:00:18]}  Kb6 {[%clk 0:00:04]} 56. a8=Q {[%clk 0:00:02]}  Nxa8 {[%clk 0:00:04]} 57. Kf5 {[%clk 0:00:03]}  Nc7 {[%clk 0:00:05]} 58. g5 {[%clk 0:00:03]}  Ne8 {[%clk 0:00:05]} 59. Ke6 {[%clk 0:00:03]}  Ng7+ {[%clk 0:00:05]} 60. Kf6 {[%clk 0:00:04]}  Nh5+ {[%clk 0:00:05]} 61. Kg6 {[%clk 0:00:04]}  Nf4+ {[%clk 0:00:06]} 62. Kf5 {[%clk 0:00:04]}  Nh5 {[%clk 0:00:06]} 63. g6 {[%clk 0:00:05]}  Kc6 {[%clk 0:00:06]} 64. Kg5 {[%clk 0:00:06]}  Ng7 {[%clk 0:00:06]} 65. Kf6 {[%clk 0:00:07]}  Nh5+ {[%clk 0:00:07]} 66. Kf7 {[%clk 0:00:08]}  Kd6 {[%clk 0:00:07]} 67. g7 {[%clk 0:00:09]}  Nxg7 {[%clk 0:00:07]} 1/2-1/2


[Site "https://www.chess.com"]

[Event "Titled Tuesday Blitz May 2 Late 2023"]
[White "Caruana, Fabiano"]
[Black "Hakobyan, Aram"]
[WhiteFideId "2020009"]
[BlackFideId "13306677"]
[WhiteElo "2837"]
[BlackElo "2584"]
[Result "0-1"]
[Round "07"]
[TimeControl "180+2"]
[Date "2023.05.02"]
[WhiteClock "0:00:09"]
[BlackClock "0:00:09"]

1. d4 {[%clk 0:03:00]}  Nf6 {[%clk 0:02:57]} 2. c4 {[%clk 0:03:00]}  e6 {[%clk 0:02:57]} 3. Nf3 {[%clk 0:03:00]}  d5 {[%clk 0:02:52]} 4. Nc3 {[%clk 0:03:00]}  c5 {[%clk 0:02:43]} 5. e3 {[%clk 0:02:59]}  dxc4 {[%clk 0:02:42]} 6. Bxc4 {[%clk 0:02:59]}  a6 {[%clk 0:02:43]} 7. O-O {[%clk 0:02:52]}  b5 {[%clk 0:02:42]} 8. Bd3 {[%clk 0:02:52]}  Bb7 {[%clk 0:02:40]} 9. a4 {[%clk 0:02:46]}  b4 {[%clk 0:02:38]} 10. Nb1 {[%clk 0:02:40]}  Nbd7 {[%clk 0:02:39]} 11. Qe2 {[%clk 0:02:37]}  Be7 {[%clk 0:02:34]} 12. Nbd2 {[%clk 0:02:36]}  O-O {[%clk 0:02:35]} 13. Nb3 {[%clk 0:02:30]}  cxd4 {[%clk 0:02:24]} 14. exd4 {[%clk 0:02:31]}  Bd5 {[%clk 0:02:14]} 15. Nfd2 {[%clk 0:02:30]}  a5 {[%clk 0:02:12]} 16. Nc4 {[%clk 0:02:29]}  Ra7 {[%clk 0:01:55]} 17. Bf4 {[%clk 0:02:21]}  Qa8 {[%clk 0:01:55]} 18. f3 {[%clk 0:02:18]}  Rc8 {[%clk 0:01:54]} 19. Rac1 {[%clk 0:02:16]}  Bxc4 {[%clk 0:01:27]} 20. Bxc4 {[%clk 0:02:09]}  Nf8 {[%clk 0:01:15]} 21. Bb5 {[%clk 0:01:56]}  Nd5 {[%clk 0:01:11]} 22. Bg3 {[%clk 0:01:54]}  Bg5 {[%clk 0:01:03]} 23. Rc5 {[%clk 0:01:39]}  Ng6 {[%clk 0:00:51]} 24. Kh1 {[%clk 0:01:22]}  h5 {[%clk 0:00:49]} 25. Nd2 {[%clk 0:01:12]}  h4 {[%clk 0:00:45]} 26. Bf2 {[%clk 0:01:12]}  Be7 {[%clk 0:00:42]} 27. Ne4 {[%clk 0:01:06]}  Bxc5 {[%clk 0:00:27]} 28. dxc5 {[%clk 0:01:07]}  Rd8 {[%clk 0:00:23]} 29. h3 {[%clk 0:00:57]}  Rc7 {[%clk 0:00:21]} 30. Nd6 {[%clk 0:00:53]}  Ndf4 {[%clk 0:00:20]} 31. Qc2 {[%clk 0:00:48]}  Rxd6 {[%clk 0:00:18]} 32. Be3 {[%clk 0:00:39]}  Rd8 {[%clk 0:00:17]} 33. Qc4 {[%clk 0:00:36]}  Nh5 {[%clk 0:00:14]} 34. Rc1 {[%clk 0:00:33]}  Qd5 {[%clk 0:00:14]} 35. Qxd5 {[%clk 0:00:29]}  exd5 {[%clk 0:00:15]} 36. Bd4 {[%clk 0:00:27]}  Ng3+ {[%clk 0:00:15]} 37. Kh2 {[%clk 0:00:28]}  Nf5 {[%clk 0:00:14]} 38. Bf2 {[%clk 0:00:28]}  d4 {[%clk 0:00:14]} 39. c6 {[%clk 0:00:28]}  Ne3 {[%clk 0:00:10]} 40. Rc5 {[%clk 0:00:25]}  f6 {[%clk 0:00:07]} 41. Ba6 {[%clk 0:00:21]}  Rd5 {[%clk 0:00:06]} 42. Rc1 {[%clk 0:00:18]}  Rd6 {[%clk 0:00:06]} 43. Bb7 {[%clk 0:00:18]}  Ne7 {[%clk 0:00:06]} 44. Bxh4 {[%clk 0:00:16]}  N7f5 {[%clk 0:00:07]} 45. Bf2 {[%clk 0:00:16]}  d3 {[%clk 0:00:07]} 46. Be1 {[%clk 0:00:09]}  d2 {[%clk 0:00:08]} 47. Bxd2 {[%clk 0:00:09]}  Rxd2 {[%clk 0:00:09]} 0-1


[Site "https://www.chess.com"]

[Event "Titled Tuesday Blitz May 2 Late 2023"]
[White "Naroditsky, Daniel"]
[Black "Henriquez Villagra, Cristobal"]
[WhiteFideId "2026961"]
[BlackFideId "3409350"]
[WhiteElo "2633"]
[BlackElo "2542"]
[Result "1-0"]
[Round "07"]
[TimeControl "180+2"]
[Date "2023.05.02"]
[WhiteClock "0:01:02"]
[BlackClock "0:00:09"]

1. d4 {[%clk 0:02:59]}  c6 {[%clk 0:02:54]} 2. e4 {[%clk 0:02:56]}  d5 {[%clk 0:02:54]} 3. f3 {[%clk 0:02:57]}  g6 {[%clk 0:02:53]} 4. Na3 {[%clk 0:02:54]}  Bg7 {[%clk 0:02:49]} 5. c3 {[%clk 0:02:54]}  a6 {[%clk 0:02:46]} 6. Be3 {[%clk 0:02:51]}  Nd7 {[%clk 0:02:35]} 7. Qd2 {[%clk 0:02:37]}  b5 {[%clk 0:02:32]} 8. e5 {[%clk 0:02:32]}  Nb6 {[%clk 0:02:22]} 9. Bd3 {[%clk 0:02:28]}  h5 {[%clk 0:02:21]} 10. Ne2 {[%clk 0:02:20]}  Nh6 {[%clk 0:02:19]} 11. b3 {[%clk 0:02:11]}  Nf5 {[%clk 0:02:12]} 12. Bf4 {[%clk 0:02:10]}  Be6 {[%clk 0:02:09]} 13. Nc2 {[%clk 0:02:08]}  Rc8 {[%clk 0:02:05]} 14. Ne3 {[%clk 0:02:06]}  Qd7 {[%clk 0:02:05]} 15. a4 {[%clk 0:01:59]}  bxa4 {[%clk 0:01:55]} 16. bxa4 {[%clk 0:01:59]}  Nc4 {[%clk 0:01:56]} 17. Bxc4 {[%clk 0:01:53]}  dxc4 {[%clk 0:01:57]} 18. Ng3 {[%clk 0:01:38]}  Nxe3 {[%clk 0:01:48]} 19. Bxe3 {[%clk 0:01:35]}  Rb8 {[%clk 0:01:47]} 20. Ne4 {[%clk 0:01:35]}  Bf5 {[%clk 0:01:44]} 21. Nc5 {[%clk 0:01:35]}  Qc8 {[%clk 0:01:33]} 22. O-O {[%clk 0:01:34]}  O-O {[%clk 0:01:26]} 23. Bh6 {[%clk 0:01:34]}  a5 {[%clk 0:01:18]} 24. Rae1 {[%clk 0:01:31]}  Qd8 {[%clk 0:01:15]} 25. e6 {[%clk 0:01:24]}  fxe6 {[%clk 0:00:30]} 26. Bxg7 {[%clk 0:01:17]}  Kxg7 {[%clk 0:00:29]} 27. Rxe6 {[%clk 0:01:16]}  Rf7 {[%clk 0:00:23]} 28. Rfe1 {[%clk 0:01:10]}  Kg8 {[%clk 0:00:22]} 29. Qg5 {[%clk 0:01:04]}  Rb2 {[%clk 0:00:09]} 30. Rxg6+ {[%clk 0:01:02]} 1-0


[Site "https://www.chess.com"]

[Event "Titled Tuesday Blitz May 2 Late 2023"]
[White "Grischuk, Alexander"]
[Black "Zhigalko, Sergei"]
[WhiteFideId "4126025"]
[BlackFideId "13502956"]
[WhiteElo "2727"]
[BlackElo "2626"]
[Result "1-0"]
[Round "07"]
[TimeControl "180+2"]
[Date "2023.05.02"]
[WhiteClock "0:00:16"]
[BlackClock "0:00:01"]

1. c4 {[%clk 0:03:00]}  e5 {[%clk 0:03:00]} 2. g3 {[%clk 0:03:01]}  Nf6 {[%clk 0:03:00]} 3. Bg2 {[%clk 0:03:01]}  c6 {[%clk 0:03:00]} 4. d4 {[%clk 0:02:56]}  exd4 {[%clk 0:03:00]} 5. Qxd4 {[%clk 0:02:56]}  Na6 {[%clk 0:03:00]} 6. Nf3 {[%clk 0:02:55]}  Bc5 {[%clk 0:03:00]} 7. Qe5+ {[%clk 0:02:54]}  Be7 {[%clk 0:02:59]} 8. O-O {[%clk 0:02:54]}  O-O {[%clk 0:02:59]} 9. Nc3 {[%clk 0:02:47]}  Re8 {[%clk 0:02:57]} 10. Rd1 {[%clk 0:02:46]}  Nc5 {[%clk 0:02:50]} 11. Qf5 {[%clk 0:02:25]}  d6 {[%clk 0:02:42]} 12. Qc2 {[%clk 0:02:25]}  a5 {[%clk 0:02:43]} 13. b3 {[%clk 0:02:21]}  h6 {[%clk 0:02:41]} 14. h3 {[%clk 0:02:14]}  Bf8 {[%clk 0:02:37]} 15. Nd4 {[%clk 0:02:13]}  Bd7 {[%clk 0:02:22]} 16. Bf4 {[%clk 0:02:04]}  Qe7 {[%clk 0:01:35]} 17. Nf5 {[%clk 0:01:45]}  Bxf5 {[%clk 0:01:34]} 18. Qxf5 {[%clk 0:01:46]}  Rad8 {[%clk 0:01:32]} 19. Qc2 {[%clk 0:01:44]}  Qe6 {[%clk 0:01:27]} 20. Rd4 {[%clk 0:01:33]}  g5 {[%clk 0:01:21]} 21. Be3 {[%clk 0:01:29]}  Bg7 {[%clk 0:01:15]} 22. Rad1 {[%clk 0:01:28]}  Nh5 {[%clk 0:01:06]} 23. R4d2 {[%clk 0:01:21]}  Bxc3 {[%clk 0:00:41]} 24. Qxc3 {[%clk 0:01:20]}  Nxg3 {[%clk 0:00:42]} 25. Bxc5 {[%clk 0:00:52]}  Nxe2+ {[%clk 0:00:40]} 26. Rxe2 {[%clk 0:00:53]}  Qxe2 {[%clk 0:00:41]} 27. Bf3 {[%clk 0:00:54]}  Qe6 {[%clk 0:00:10]} 28. Bd4 {[%clk 0:00:39]}  Rd7 {[%clk 0:00:03]} 29. Bf6 {[%clk 0:00:27]}  d5 {[%clk 0:00:02]} 30. Bg4 {[%clk 0:00:23]}  Qd6 {[%clk 0:00:02]} 31. Bxd7 {[%clk 0:00:22]}  Qxd7 {[%clk 0:00:03]} 32. cxd5 {[%clk 0:00:21]}  cxd5 {[%clk 0:00:04]} 33. Bh8 {[%clk 0:00:17]}  f6 {[%clk 0:00:01]} 34. Bxf6 {[%clk 0:00:17]}  Qxh3 {[%clk 0:00:01]} 35. Qxh3 {[%clk 0:00:16]} 1-0


[Site "https://www.chess.com"]

[Event "Titled Tuesday Blitz May 2 Late 2023"]
[White "Deac, Bogdan-Daniel"]
[Black "Kamsky, Gata"]
[WhiteFideId "1226380"]
[BlackFideId "2000024"]
[WhiteElo "2649"]
[BlackElo "2660"]
[Result "1-0"]
[Round "07"]
[TimeControl "180+2"]
[Date "2023.05.02"]
[WhiteClock "0:00:05"]
[BlackClock "0:00:08"]

1. e4 {[%clk 0:03:00]}  c5 {[%clk 0:02:57]} 2. Nf3 {[%clk 0:02:59]}  e6 {[%clk 0:02:57]} 3. g3 {[%clk 0:02:59]}  b6 {[%clk 0:02:52]} 4. d4 {[%clk 0:02:58]}  cxd4 {[%clk 0:02:50]} 5. Nxd4 {[%clk 0:02:59]}  Bb7 {[%clk 0:02:50]} 6. Bg2 {[%clk 0:02:59]}  Nf6 {[%clk 0:02:33]} 7. Qe2 {[%clk 0:02:59]}  Nc6 {[%clk 0:02:29]} 8. Nxc6 {[%clk 0:02:57]}  Bxc6 {[%clk 0:02:29]} 9. O-O {[%clk 0:02:58]}  Qc7 {[%clk 0:02:17]} 10. Rd1 {[%clk 0:02:54]}  Qb7 {[%clk 0:02:15]} 11. f3 {[%clk 0:02:36]}  Be7 {[%clk 0:02:05]} 12. c4 {[%clk 0:02:28]}  Bc5+ {[%clk 0:01:54]} 13. Be3 {[%clk 0:02:27]}  e5 {[%clk 0:01:39]} 14. Qf2 {[%clk 0:02:18]}  d6 {[%clk 0:01:39]} 15. Nc3 {[%clk 0:02:04]}  O-O {[%clk 0:01:37]} 16. Rd2 {[%clk 0:01:58]}  Qe7 {[%clk 0:01:27]} 17. Rad1 {[%clk 0:01:57]}  Rfd8 {[%clk 0:01:25]} 18. Kh1 {[%clk 0:01:54]}  Rac8 {[%clk 0:01:22]} 19. Bh3 {[%clk 0:01:51]}  Rb8 {[%clk 0:01:16]} 20. Rd3 {[%clk 0:01:45]}  h6 {[%clk 0:01:04]} 21. Qd2 {[%clk 0:01:45]}  Ne8 {[%clk 0:01:01]} 22. b3 {[%clk 0:01:33]}  a6 {[%clk 0:01:00]} 23. a4 {[%clk 0:00:47]}  a5 {[%clk 0:00:53]} 24. Bxc5 {[%clk 0:00:35]}  bxc5 {[%clk 0:00:52]} 25. Nb5 {[%clk 0:00:36]}  Bxb5 {[%clk 0:00:29]} 26. axb5 {[%clk 0:00:37]}  Ra8 {[%clk 0:00:24]} 27. Ra1 {[%clk 0:00:36]}  Qc7 {[%clk 0:00:23]} 28. Ra4 {[%clk 0:00:36]}  Qb6 {[%clk 0:00:19]} 29. Qc3 {[%clk 0:00:31]}  Nc7 {[%clk 0:00:18]} 30. Rd1 {[%clk 0:00:31]}  Ra7 {[%clk 0:00:18]} 31. Rda1 {[%clk 0:00:27]}  Rda8 {[%clk 0:00:18]} 32. f4 {[%clk 0:00:26]}  Qb7 {[%clk 0:00:14]} 33. fxe5 {[%clk 0:00:20]}  dxe5 {[%clk 0:00:12]} 34. Qxe5 {[%clk 0:00:21]}  Qb6 {[%clk 0:00:10]} 35. Rd1 {[%clk 0:00:20]}  Re8 {[%clk 0:00:09]} 36. Qd6 {[%clk 0:00:20]}  Na8 {[%clk 0:00:09]} 37. e5 {[%clk 0:00:17]}  Rb8 {[%clk 0:00:07]} 38. Bg2 {[%clk 0:00:16]}  Qxd6 {[%clk 0:00:07]} 39. exd6 {[%clk 0:00:10]}  Nb6 {[%clk 0:00:08]} 40. Ra2 {[%clk 0:00:10]}  a4 {[%clk 0:00:08]} 41. bxa4 {[%clk 0:00:11]}  Rxa4 {[%clk 0:00:08]} 42. Rxa4 {[%clk 0:00:07]}  Nxa4 {[%clk 0:00:08]} 43. d7 {[%clk 0:00:07]}  Rd8 {[%clk 0:00:08]} 44. Bc6 {[%clk 0:00:05]} 1-0


[Site "https://www.chess.com"]